[Event "European Online Club-ch-C 2021"]
[Site "Online"]
[Date "2021.03.27"]
[Round "8.1"]
[White "Sahin, Ozgun"]
[Black "Wirig, Anthony"]
[Result "0-1"]
[ECO "B45"]
[WhiteElo "2281"]
[BlackElo "2500"]
[Annotator "ChessBase"]
[PlyCount "180"]
[EventDate "2021.03.27"]
[EventType "team-tourn"]
[EventCountry "NET"]
[SourceTitle "playchess.com"]
[Source "ChessBase"]
[SourceQuality "1"]
[TimeControl "900+5"]

1. e4 {[%emt 0:00:00]} c5 {[%emt 0:00:02]} 2. Nf3 {[%emt 0:00:03]} e6 {[%emt 0:00:01]} 3. d4 {[%emt 0:00:02]} cxd4 {[%emt 0:00:00]} 4. Nxd4 {[%emt 0:00:02]} Nf6 {[%emt 0:00:01]} 5. Nc3 {[%emt 0:00:02]} Nc6 {[%emt 0:00:01]} 6. Bf4 {[%emt 0:00:03]} Bb4 {[%emt 0:00:19]} 7. Ndb5 {[%emt 0:00:04]} e5 {[%emt 0:00:56]} 8. Bg5 {[%emt 0:00:47]} O-O {[%emt 0:01:17]} 9. a3 {[%emt 0:01:56]} Be7 {[%emt 0:00:06]} 10. Bxf6 {[%emt 0:00:28]} Bxf6 {[%emt 0:00:02]} 11. Nd5 {[%emt 0:00:02]} d6 {[%emt 0:00:53]} 12. Nxf6+ {[%emt 0:00:43]} Qxf6 {[%emt 0:00:02]} 13. Bd3 {[%emt 0:02:34]} Qg5 {[%emt 0:01:09]} 14. Qd2 {[%emt 0:00:48]} Qxd2+ {[%emt 0:00:07]} 15. Kxd2 {[%emt 0:00:03]} Rd8 {[%emt 0:00:02]} 16. Rad1 {[%emt 0:00:11]} a6 {[%emt 0:00:05]} 17. Nc7 {[%emt 0:00:04]} Ra7 {[%emt 0:00:09]} 18. Nd5 {[%emt 0:00:09]} b5 {[%emt 0:00:20]} 19. a4 {[%emt 0:00:42]} b4 {[%emt 0:00:23]} 20. c3 {[%emt 0:00:33]} bxc3+ {[%emt 0:00:20]} 21. bxc3 {[%emt 0:00:05]} Be6 {[%emt 0:00:06]} 22. Ne3 {[%emt 0:00:09]} Na5 {[%emt 0:00:15]} 23. Rb1 {[%emt 0:00:18]} g6 {[%emt 0:00:24]} 24. Rb6 {[%emt 0:00:08]} Nb3+ {[%emt 0:00:03]} 25. Kc2 {[%emt 0:00:03]} Nc5 {[%emt 0:00:21]} 26. a5 {[%emt 0:00:15]} Kf8 {[%emt 0:00:27]} 27. Rhb1 {[%emt 0:00:09]} Ke7 {[%emt 0:00:05]} 28. Rc6 {[%emt 0:00:38]} Rdd7 {[%emt 0:02:01]} 29. Rbb6 {[%emt 0:00:38]} h5 {[%emt 0:01:29]} 30. f3 {[%emt 0:00:47]} h4 {[%emt 0:00:02]} 31. Bxa6 {[%emt 0:00:08]} f5 {[%emt 0:00:17]} 32. Bc8 {[%emt 0:00:24]} Rxa5 {[%emt 0:01:48]} 33. Bxd7 {[%emt 0:00:04]} Bxd7 {[%emt 0:00:01]} 34. Nd5+ {[%emt 0:00:41]} Kf7 {[%emt 0:00:02]} 35. Rxd6 {[%emt 0:00:04]} Ra2+ {[%emt 0:00:13]} 36. Rb2 {[%emt 0:00:37]} Ra7 {[%emt 0:00:49]} 37. exf5 {[%emt 0:01:14]} Bxf5+ {[%emt 0:00:02]} 38. Kd2 {[%emt 0:00:02]} Nd3 {[%emt 0:00:44]} 39. Rbb6 {[%emt 0:00:24]} Kg7 {[%emt 0:00:33]} 40. Nb4 {[%emt 0:00:42]} Nb2 {[%emt 0:00:14]} 41. Rdc6 {[%emt 0:00:09]} Rd7+ {[%emt 0:00:04]} 42. Ke2 {[%emt 0:00:04]} Kh6 {[%emt 0:00:35]} 43. g4 {[%emt 0:00:06]} Bb1 {[%emt 0:00:18]} 44. Nc2 {[%emt 0:00:28]} Bxc2 {[%emt 0:00:19]} 45. Rxb2 {[%emt 0:00:04]} Bd3+ {[%emt 0:00:17]} 46. Ke3 {[%emt 0:00:03]} Bf1 {[%emt 0:00:02]} 47. Rd2 {[%emt 0:00:05]} Rf7 {[%emt 0:00:07]} 48. Rdd6 {[%emt 0:00:04]} Rg7 {[%emt 0:00:09]} 49. c4 {[%emt 0:00:04]} h3 {[%emt 0:00:06]} 50. Kf2 {[%emt 0:00:04]} Bg2 {[%emt 0:00:03]} 51. c5 {[%emt 0:00:12]} Kg5 {[%emt 0:00:14]} 52. Kg3 {[%emt 0:00:08]} Kh6 {[%emt 0:00:14]} 53. Re6 {[%emt 0:00:04]} Kh7 {[%emt 0:00:04]} 54. Rxe5 {[%emt 0:00:03]} Rf7 {[%emt 0:00:01]} 55. f4 {[%emt 0:00:03]} Bxc6 {[%emt 0:00:02]} 56. f5 {[%emt 0:00:12]} gxf5 {[%emt 0:00:20]} 57. Rxf5 {[%emt 0:00:03]} Ra7 {[%emt 0:00:04]} 58. Kxh3 {[%emt 0:00:04]} Bd7 {[%emt 0:00:19]} 59. Rg5 {[%emt 0:00:27]} Ra2 {[%emt 0:00:08]} 60. Rd5 {[%emt 0:00:14]} Bb5 {[%emt 0:00:10]} 61. Kg3 {[%emt 0:00:09]} Rc2 {[%emt 0:00:07]} 62. h4 {[%emt 0:00:05]} Be2 {[%emt 0:00:03]} 63. Rg5 {[%emt 0:00:10]} Rc4 {[%emt 0:00:02]} 64. h5 {[%emt 0:00:04]} Bd1 {[%emt 0:00:02]} 65. Kh4 {[%emt 0:00:04]} Bf3 {[%emt 0:00:02]} 66. Kg3 {[%emt 0:00:02]} Be2 {[%emt 0:00:01]} 67. Kh4 {[%emt 0:00:02]} Kh6 {[%emt 0:00:06]} 68. Rg6+ {[%emt 0:00:02]} Kh7 {[%emt 0:00:01]} 69. c6 {[%emt 0:00:04]} Bf3 {[%emt 0:00:04]} 70. Kg3 {[%emt 0:00:07]} Bxc6 {[%emt 0:00:02]} 71. g5 {[%emt 0:00:02]} Be8 {[%emt 0:00:09]} 72. Rh6+ {[%emt 0:00:02]} Kg7 {[%emt 0:00:02]} 73. Kh3 {[%emt 0:00:03]} Bd7+ {[%emt 0:00:04]} 74. Kh2 {[%emt 0:00:05]} Rh4+ {[%emt 0:00:07]} 75. Kg3 {[%emt 0:00:04]} Rg4+ {[%emt 0:00:05]} 76. Kf3 {[%emt 0:00:02]} Rg1 {[%emt 0:00:05]} 77. Kf4 {[%emt 0:00:03]} Rf1+ {[%emt 0:00:05]} 78. Kg3 {[%emt 0:00:04]} Be8 {[%emt 0:00:02]} 79. Kh4 {[%emt 0:00:05]} Rg1 {[%emt 0:00:07]} 80. Re6 {[%emt 0:00:03]} Rh1+ {[%emt 0:00:03]} 81. Kg3 {[%emt 0:00:04]} Bxh5 {[%emt 0:00:02]} 82. Rh6 {[%emt 0:00:02]} Rg1+ {[%emt 0:00:04]} 83. Kf4 {[%emt 0:00:04]} Bg6 {[%emt 0:00:07]} 84. Rh4 {[%emt 0:00:04]} Ra1 {[%emt 0:00:03]} 85. Kg3 {[%emt 0:00:04]} Ra5 {[%emt 0:00:08]} 86. Kf4 {[%emt 0:00:02]} Rf5+ {[%emt 0:00:05]} 87. Kg4 {[%emt 0:00:02]} Rf1 {[%emt 0:00:01]} 88. Rh2 {[%emt 0:00:06]} Bf5+ {[%emt 0:00:03]} 89. Kh5 {[%emt 0:00:03]} Rf4 {[%emt 0:00:04]} 90. Rh4 {[%emt 0:00:03]} Bg6# {[%emt 0:00:02]} 0-1

[Event "European Online Club-ch-C 2021"]
[Site "Online"]
[Date "2021.03.27"]
[Round "8.2"]
[White "Micottis, Dorian"]
[Black "Okuyaz, Duru"]
[Result "1/2-1/2"]
[ECO "A04"]
[WhiteElo "2223"]
[BlackElo "2076"]
[Annotator "NA"]
[PlyCount "122"]
[EventDate "2021.03.27"]
[EventType "team-tourn"]
[EventCountry "NET"]
[SourceTitle "playchess.com"]
[Source "ChessBase"]
[SourceQuality "1"]
[TimeControl "900+5"]

1. e4 {[%emt 0:00:00]} e6 {[%emt 0:00:02]} 2. d3 {[%emt 0:00:03]} c5 {[%emt 0:00:03]} 3. Nf3 {[%emt 0:00:06]} Nc6 {[%emt 0:00:01]} 4. g3 {[%emt 0:00:01]} g6 {[%emt 0:00:03]} 5. Bg2 {[%emt 0:00:03]} Bg7 {[%emt 0:00:01]} 6. O-O {[%emt 0:00:02]} Nge7 {[%emt 0:00:02]} 7. Re1 {[%emt 0:00:04]} O-O {[%emt 0:00:05]} 8. c3 {[%emt 0:00:12]} d5 {[%emt 0:00:41]} 9. e5 {[%emt 0:00:04]} b5 {[%emt 0:00:31]} 10. Bf4 {[%emt 0:00:16]} Qb6 {[%emt 0:00:40]} 11. Nbd2 {[%emt 0:00:13]} a5 {[%emt 0:00:08]} 12. h4 {[%emt 0:00:07]} a4 {[%emt 0:00:20]} 13. Nf1 {[%emt 0:01:15]} b4 {[%emt 0:00:18]} 14. a3 {[%emt 0:02:42]} Bd7 {[%emt 0:02:05]} 15. N1h2 {[%emt 0:00:30]} bxc3 {[%emt 0:00:44]} 16. bxc3 {[%emt 0:00:03]} Qb2 {[%emt 0:00:06]} 17. Ng4 {[%emt 0:04:40]} Qxc3 {[%emt 0:00:38]} 18. Bh6 {[%emt 0:01:21]} Bxh6 {[%emt 0:00:08]} 19. Nxh6+ {[%emt 0:00:02]} Kg7 {[%emt 0:00:02]} 20. Ng4 {[%emt 0:00:06]} Ng8 {[%emt 0:00:09]} 21. h5 {[%emt 0:00:21]} f5 {[%emt 0:03:48]} 22. exf6+ {[%emt 0:00:13]} Nxf6 {[%emt 0:00:05]} 23. h6+ {[%emt 0:00:42]} Kg8 {[%emt 0:00:36]} 24. Nge5 {[%emt 0:00:04]} Nxe5 {[%emt 0:00:35]} 25. Nxe5 {[%emt 0:00:03]} Qd4 {[%emt 0:00:02]} 26. Qe2 {[%emt 0:00:32]} Rae8 {[%emt 0:00:32]} 27. Rac1 {[%emt 0:00:26]} Bb5 {[%emt 0:00:21]} 28. Red1 {[%emt 0:00:40]} Ne4 {[%emt 0:00:20]} 29. Nf3 {[%emt 0:00:41]} Qf6 {[%emt 0:01:23]} 30. Qc2 {[%emt 0:00:34]} Ng5 {[%emt 0:00:37]} 31. Nxg5 {[%emt 0:00:04]} Qxg5 {[%emt 0:00:05]} 32. Qxc5 {[%emt 0:00:01]} Bd7 {[%emt 0:01:56]} 33. Qa7 {[%emt 0:00:08]} Rd8 {[%emt 0:00:13]} 34. Rc7 {[%emt 0:00:05]} Qe7 {[%emt 0:00:03]} 35. Rb1 {[%emt 0:00:09]} Rf7 {[%emt 0:00:09]} 36. Rbb7 {[%emt 0:00:08]} Qe8 {[%emt 0:00:13]} 37. d4 {[%emt 0:00:25]} Ra8 {[%emt 0:00:03]} 38. Qb6 {[%emt 0:00:18]} Rc8 {[%emt 0:00:10]} 39. Rxc8 {[%emt 0:00:38]} Bxc8 {[%emt 0:00:01]} 40. Rxf7 {[%emt 0:00:04]} Qxf7 {[%emt 0:00:03]} 41. Qd6 {[%emt 0:00:12]} Qd7 {[%emt 0:00:04]} 42. Qxd7 {[%emt 0:00:05]} Bxd7 {[%emt 0:00:01]} 43. f4 {[%emt 0:00:01]} Kf7 {[%emt 0:00:02]} 44. g4 {[%emt 0:00:09]} g5 {[%emt 0:00:09]} 45. Kf2 {[%emt 0:00:06]} gxf4 {[%emt 0:00:03]} 46. Kf3 {[%emt 0:00:01]} Kg6 {[%emt 0:00:03]} 47. Kxf4 {[%emt 0:00:01]} Kxh6 {[%emt 0:00:02]} 48. g5+ {[%emt 0:00:03]} Kg7 {[%emt 0:00:05]} 49. Bf1 {[%emt 0:00:04]} h6 {[%emt 0:00:02]} 50. Bd3 {[%emt 0:00:05]} hxg5+ {[%emt 0:00:03]} 51. Kxg5 {[%emt 0:00:00]} Be8 {[%emt 0:00:04]} 52. Bc2 {[%emt 0:00:03]} Bd7 {[%emt 0:00:10]} 53. Bd1 {[%emt 0:00:02]} Kf7 {[%emt 0:00:05]} 54. Bc2 {[%emt 0:00:05]} Ke7 {[%emt 0:00:02]} 55. Bd1 {[%emt 0:00:03]} Kd6 {[%emt 0:00:01]} 56. Kf6 {[%emt 0:00:04]} Bc6 {[%emt 0:00:06]} 57. Bg4 {[%emt 0:00:05]} Bd7 {[%emt 0:00:02]} 58. Kf7 {[%emt 0:00:11]} Bc8 {[%emt 0:00:06]} 59. Kf6 {[%emt 0:00:14]} Bd7 {[%emt 0:00:02]} 60. Bd1 {[%emt 0:00:06]} Bb5 {[%emt 0:00:05]} 61. Bg4 {[%emt 0:00:06]} Bd7 {[%emt 0:00:01]} 1/2-1/2

[Event "European Online Club-ch-C 2021"]
[Site "Online"]
[Date "2021.03.27"]
[Round "8.3"]
[White "Yagiz, Bora"]
[Black "Bruch, Jochen"]
[Result "1-0"]
[ECO "B81"]
[WhiteElo "1877"]
[BlackElo "2187"]
[Annotator "NA"]
[PlyCount "117"]
[EventDate "2021.03.27"]
[EventType "team-tourn"]
[EventCountry "NET"]
[SourceTitle "playchess.com"]
[Source "ChessBase"]
[SourceQuality "1"]
[TimeControl "900+5"]

1. e4 {[%emt 0:00:00]} c5 {[%emt 0:00:05]} 2. Nf3 {[%emt 0:00:06]} e6 {[%emt 0:00:04]} 3. d4 {[%emt 0:00:08]} cxd4 {[%emt 0:00:03]} 4. Nxd4 {[%emt 0:00:02]} Nf6 {[%emt 0:00:03]} 5. Nc3 {[%emt 0:00:02]} d6 {[%emt 0:00:02]} 6. g4 {[%emt 0:01:28]} h6 {[%emt 0:00:07]} 7. h4 {[%emt 0:01:02]} Nc6 {[%emt 0:00:08]} 8. g5 {[%emt 0:01:30]} hxg5 {[%emt 0:00:06]} 9. Bxg5 {[%emt 0:00:02]} Be7 {[%emt 0:00:04]} 10. Qd2 {[%emt 0:01:00]} a6 {[%emt 0:01:02]} 11. O-O-O {[%emt 0:00:40]} Bd7 {[%emt 0:00:43]} 12. Nb3 {[%emt 0:02:20]} Qc7 {[%emt 0:00:18]} 13. f4 {[%emt 0:00:33]} Na5 {[%emt 0:01:45]} 14. Nxa5 {[%emt 0:03:40]} Qxa5 {[%emt 0:00:07]} 15. e5 {[%emt 0:00:00]} Bc6 {[%emt 0:04:57]} 16. Bg2 {[%emt 0:03:06]} dxe5 {[%emt 0:02:07]} 17. Bxc6+ {[%emt 0:00:02]} bxc6 {[%emt 0:00:05]} 18. Bxf6 {[%emt 0:00:10]} gxf6 {[%emt 0:01:38]} 19. Qd7+ {[%emt 0:00:07]} Kf8 {[%emt 0:00:04]} 20. Qxc6 {[%emt 0:00:15]} Rb8 {[%emt 0:00:11]} 21. Rd7 {[%emt 0:00:24]} Qb4 {[%emt 0:00:26]} 22. Nd1 {[%emt 0:00:06]} exf4 {[%emt 0:00:40]} 23. Rh3 {[%emt 0:00:05]} Qb6 {[%emt 0:00:26]} 24. Qe4 {[%emt 0:00:04]} Bd6 {[%emt 0:00:30]} 25. Rb3 {[%emt 0:00:02]} Bb4 {[%emt 0:00:23]} 26. a3 {[%emt 0:00:02]} Qb5 {[%emt 0:00:07]} 27. Qd4 {[%emt 0:00:07]} Qe5 {[%emt 0:00:29]} 28. axb4 {[%emt 0:00:05]} Qxd4 {[%emt 0:00:07]} 29. Rxd4 {[%emt 0:00:01]} e5 {[%emt 0:00:03]} 30. Rd6 {[%emt 0:00:03]} Ke7 {[%emt 0:00:03]} 31. Rxa6 {[%emt 0:00:02]} Rxh4 {[%emt 0:00:03]} 32. b5 {[%emt 0:00:01]} e4 {[%emt 0:00:07]} 33. Ra4 {[%emt 0:00:05]} f5 {[%emt 0:00:03]} 34. b6 {[%emt 0:00:03]} Rh1 {[%emt 0:00:06]} 35. b7 {[%emt 0:00:14]} f3 {[%emt 0:00:08]} 36. Kd2 {[%emt 0:00:05]} f4 {[%emt 0:00:15]} 37. Rxe4+ {[%emt 0:00:04]} Kd6 {[%emt 0:00:11]} 38. Nf2 {[%emt 0:00:05]} Kc6 {[%emt 0:00:04]} 39. Rxf4 {[%emt 0:00:05]} Rh2 {[%emt 0:00:05]} 40. Rfxf3 {[%emt 0:00:01]} Rh6 {[%emt 0:00:06]} 41. Rxf7 {[%emt 0:00:05]} Rd6+ {[%emt 0:00:04]} 42. Nd3 {[%emt 0:00:02]} Rd4 {[%emt 0:00:06]} 43. Rf6+ {[%emt 0:00:04]} Kc7 {[%emt 0:00:03]} 44. Rf7+ {[%emt 0:00:02]} Kc6 {[%emt 0:00:04]} 45. Kc3 {[%emt 0:00:02]} Rh4 {[%emt 0:00:05]} 46. Nb4+ {[%emt 0:00:06]} Kb6 {[%emt 0:00:07]} 47. Nd3+ {[%emt 0:00:15]} Kc6 {[%emt 0:00:04]} 48. Rb4 {[%emt 0:00:02]} Rh3 {[%emt 0:00:04]} 49. Rc4+ {[%emt 0:00:02]} Kb6 {[%emt 0:00:03]} 50. b3 {[%emt 0:00:04]} Rg3 {[%emt 0:00:05]} 51. Kb2 {[%emt 0:00:06]} Ka6 {[%emt 0:00:07]} 52. Rc8 {[%emt 0:00:07]} Rxb7 {[%emt 0:00:05]} 53. Nc5+ {[%emt 0:00:02]} Ka5 {[%emt 0:00:03]} 54. Nxb7+ {[%emt 0:00:05]} Kb6 {[%emt 0:00:04]} 55. Rc3 {[%emt 0:00:08]} Rg2 {[%emt 0:00:05]} 56. Nd6 {[%emt 0:00:02]} Ka6 {[%emt 0:00:05]} 57. Rc6+ {[%emt 0:00:12]} Ka5 {[%emt 0:00:03]} 58. Ra7+ {[%emt 0:00:02]} Kb4 {[%emt 0:00:04]} 59. Ra4# {[%emt 0:00:18]} 1-0

[Event "European Online Club-ch-C 2021"]
[Site "Online"]
[Date "2021.03.27"]
[Round "8.4"]
[White "Kirsch, Laurent"]
[Black "Deveci, Huseyin Said"]
[Result "1-0"]
[ECO "A57"]
[WhiteElo "2120"]
[BlackElo "1521"]
[Annotator "NA"]
[PlyCount "71"]
[EventDate "2021.03.27"]
[EventType "team-tourn"]
[EventCountry "NET"]
[SourceTitle "playchess.com"]
[Source "ChessBase"]
[SourceQuality "1"]
[TimeControl "900+5"]

1. d4 {[%emt 0:00:00]} Nf6 {[%emt 0:00:03]} 2. c4 {[%emt 0:00:03]} c5 {[%emt 0:00:02]} 3. d5 {[%emt 0:00:03]} b5 {[%emt 0:00:02]} 4. cxb5 {[%emt 0:00:02]} a6 {[%emt 0:00:02]} 5. e3 {[%emt 0:00:01]} d6 {[%emt 0:00:08]} 6. Nc3 {[%emt 0:00:07]} g6 {[%emt 0:00:08]} 7. Nf3 {[%emt 0:00:03]} Bg7 {[%emt 0:00:03]} 8. a4 {[%emt 0:00:04]} O-O {[%emt 0:00:06]} 9. e4 {[%emt 0:00:03]} Bb7 {[%emt 0:00:51]} 10. Bd2 {[%emt 0:00:22]} e6 {[%emt 0:01:01]} 11. dxe6 {[%emt 0:02:06]} fxe6 {[%emt 0:00:03]} 12. Bd3 {[%emt 0:00:25]} d5 {[%emt 0:00:13]} 13. exd5 {[%emt 0:00:20]} exd5 {[%emt 0:00:03]} 14. O-O {[%emt 0:00:19]} d4 {[%emt 0:00:18]} 15. bxa6 {[%emt 0:01:24]} Bxf3 {[%emt 0:02:11]} 16. Qxf3 {[%emt 0:00:03]} dxc3 {[%emt 0:00:05]} 17. Bc4+ {[%emt 0:00:23]} Kh8 {[%emt 0:00:49]} 18. Qxa8 {[%emt 0:00:07]} cxd2 {[%emt 0:00:02]} 19. Rad1 {[%emt 0:00:40]} Qd6 {[%emt 0:01:57]} 20. a7 {[%emt 0:00:31]} Ng4 {[%emt 0:02:54]} 21. g3 {[%emt 0:00:48]} Nc6 {[%emt 0:03:21]} 22. Qb7 {[%emt 0:00:29]} Nxf2 {[%emt 0:01:11]} 23. a8=Q {[%emt 0:00:46]} Nxd1 {[%emt 0:00:21]} 24. Rxf8+ {[%emt 0:00:22]} Bxf8 {[%emt 0:00:07]} 25. Qxc6 {[%emt 0:01:29]} Qd4+ {[%emt 0:00:19]} 26. Kh1 {[%emt 0:00:50]} Nf2+ {[%emt 0:00:12]} 27. Kg2 {[%emt 0:00:02]} Kg7 {[%emt 0:00:09]} 28. Be2 {[%emt 0:01:33]} d1=Q {[%emt 0:00:32]} 29. Bxd1 {[%emt 0:00:03]} Nxd1 {[%emt 0:00:02]} 30. Qab7+ {[%emt 0:00:14]} Kh6 {[%emt 0:00:03]} 31. Qf3 {[%emt 0:00:12]} Ne3+ {[%emt 0:00:03]} 32. Kh3 {[%emt 0:00:31]} Bd6 {[%emt 0:00:11]} 33. Qbe4 {[%emt 0:00:11]} Qxb2 {[%emt 0:00:08]} 34. Qfxe3+ {[%emt 0:00:07]} Kg7 {[%emt 0:00:04]} 35. Qe6 {[%emt 0:00:09]} Bf8 {[%emt 0:00:05]} 36. Q3e5+ {[%emt 0:00:04]} 1-0

[Event "European Online Club-ch-C 2021"]
[Site "Online"]
[Date "2021.03.27"]
[Round "8.5"]
[White "Fedoseev, Vladimir"]
[Black "Braun, Christian"]
[Result "1-0"]
[ECO "C03"]
[WhiteElo "2687"]
[BlackElo "2409"]
[Annotator "ChessBase"]
[PlyCount "85"]
[EventDate "2021.03.27"]
[EventType "team-tourn"]
[EventCountry "NET"]
[SourceTitle "playchess.com"]
[Source "ChessBase"]
[SourceQuality "1"]
[TimeControl "900+5"]

1. e4 {[%emt 0:00:00]} e6 {[%emt 0:00:03]} 2. d4 {[%emt 0:00:05]} d5 {[%emt 0:00:02]} 3. Nd2 {[%emt 0:00:09]} Be7 {[%emt 0:00:05]} 4. Bd3 {[%emt 0:00:06]} c5 {[%emt 0:00:02]} 5. dxc5 {[%emt 0:00:10]} Nf6 {[%emt 0:00:04]} 6. Qe2 {[%emt 0:00:09]} a5 {[%emt 0:00:03]} 7. Ngf3 {[%emt 0:00:28]} O-O {[%emt 0:00:15]} 8. h4 {[%emt 0:00:32]} h6 {[%emt 0:01:54]} 9. a3 {[%emt 0:02:47]} a4 {[%emt 0:01:33]} 10. e5 {[%emt 0:00:06]} Nfd7 {[%emt 0:00:04]} 11. b4 {[%emt 0:00:01]} axb3 {[%emt 0:00:05]} 12. Nxb3 {[%emt 0:00:23]} Na6 {[%emt 0:00:19]} 13. Rh3 {[%emt 0:02:23]} Naxc5 {[%emt 0:00:05]} 14. Kf1 {[%emt 0:00:01]} Nxd3 {[%emt 0:01:06]} 15. cxd3 {[%emt 0:00:03]} Ra4 {[%emt 0:00:32]} 16. Nbd4 {[%emt 0:00:16]} Nxe5 {[%emt 0:00:48]} 17. Qxe5 {[%emt 0:00:14]} Bf6 {[%emt 0:00:03]} 18. Qe3 {[%emt 0:00:09]} e5 {[%emt 0:00:02]} 19. Rg3 {[%emt 0:00:04]} exd4 {[%emt 0:00:07]} 20. Qxh6 {[%emt 0:00:02]} Bf5 {[%emt 0:00:08]} 21. Ne1 {[%emt 0:02:57]} Ra6 {[%emt 0:00:39]} 22. Qh5 {[%emt 0:00:10]} Bxh4 {[%emt 0:00:40]} 23. Rxg7+ {[%emt 0:01:15]} Kxg7 {[%emt 0:00:06]} 24. Qxf5 {[%emt 0:00:01]} Rf6 {[%emt 0:00:37]} 25. Qg4+ {[%emt 0:00:08]} Rg6 {[%emt 0:00:01]} 26. Qd1 {[%emt 0:00:41]} Bxf2 {[%emt 0:01:10]} 27. Kxf2 {[%emt 0:00:10]} Qh4+ {[%emt 0:00:01]} 28. Kg1 {[%emt 0:00:09]} Rh8 {[%emt 0:00:02]} 29. Bd2 {[%emt 0:00:32]} Rh5 {[%emt 0:00:59]} 30. Bf4 {[%emt 0:02:56]} Rf5 {[%emt 0:01:05]} 31. Qd2 {[%emt 0:00:23]} Rxf4 {[%emt 0:00:11]} 32. Rd1 {[%emt 0:00:01]} Qg3 {[%emt 0:01:37]} 33. Qe2 {[%emt 0:00:04]} Qe3+ {[%emt 0:00:11]} 34. Qxe3 {[%emt 0:00:01]} dxe3 {[%emt 0:00:00]} 35. Nc2 {[%emt 0:00:02]} e2 {[%emt 0:00:15]} 36. Re1 {[%emt 0:00:01]} Rf1+ {[%emt 0:00:25]} 37. Rxf1 {[%emt 0:00:02]} exf1=Q+ {[%emt 0:00:00]} 38. Kxf1 {[%emt 0:00:01]} Rc6 {[%emt 0:00:01]} 39. Nb4 {[%emt 0:00:04]} Rc3 {[%emt 0:00:11]} 40. Ke2 {[%emt 0:00:08]} d4 {[%emt 0:00:05]} 41. Kf3 {[%emt 0:00:01]} Rxa3 {[%emt 0:00:07]} 42. Ke4 {[%emt 0:00:01]} Ra2 {[%emt 0:00:03]} 43. Nxa2 {[%emt 0:00:02]} 1-0

[Event "European Online Club-ch-C 2021"]
[Site "Online"]
[Date "2021.03.27"]
[Round "8.6"]
[White "Lenaerts, Lennert"]
[Black "Esipenko, Andrey"]
[Result "1/2-1/2"]
[ECO "E20"]
[WhiteElo "2357"]
[BlackElo "2677"]
[Annotator "ChessBase"]
[PlyCount "63"]
[EventDate "2021.03.27"]
[EventType "team-tourn"]
[EventCountry "NET"]
[SourceTitle "playchess.com"]
[Source "ChessBase"]
[SourceQuality "1"]
[TimeControl "900+5"]

1. d4 {[%emt 0:00:00]} Nf6 {[%emt 0:00:04]} 2. c4 {[%emt 0:00:02]} e6 {[%emt 0:00:02]} 3. Nc3 {[%emt 0:00:06]} Bb4 {[%emt 0:00:03]} 4. g3 {[%emt 0:00:02]} O-O {[%emt 0:00:10]} 5. Bg2 {[%emt 0:00:03]} d5 {[%emt 0:00:08]} 6. Nf3 {[%emt 0:00:02]} dxc4 {[%emt 0:00:25]} 7. O-O {[%emt 0:00:03]} Nc6 {[%emt 0:00:06]} 8. Qa4 {[%emt 0:00:02]} Nd5 {[%emt 0:00:23]} 9. Qc2 {[%emt 0:00:08]} Be7 {[%emt 0:00:12]} 10. Rd1 {[%emt 0:00:04]} Rb8 {[%emt 0:00:30]} 11. e4 {[%emt 0:00:03]} Ncb4 {[%emt 0:00:03]} 12. Qd2 {[%emt 0:00:12]} Nxc3 {[%emt 0:00:18]} 13. Qxc3 {[%emt 0:00:13]} b5 {[%emt 0:00:03]} 14. a4 {[%emt 0:00:22]} a6 {[%emt 0:00:21]} 15. axb5 {[%emt 0:00:05]} axb5 {[%emt 0:00:00]} 16. b3 {[%emt 0:00:01]} Bb7 {[%emt 0:01:03]} 17. Ba3 {[%emt 0:03:10]} Nd3 {[%emt 0:00:34]} 18. Bxe7 {[%emt 0:00:28]} Qxe7 {[%emt 0:00:03]} 19. bxc4 {[%emt 0:00:08]} bxc4 {[%emt 0:00:02]} 20. Nd2 {[%emt 0:00:23]} Qf6 {[%emt 0:03:48]} 21. Nxc4 {[%emt 0:03:06]} Qxf2+ {[%emt 0:03:26]} 22. Kh1 {[%emt 0:00:03]} Nb4 {[%emt 0:00:02]} 23. Rd2 {[%emt 0:00:52]} Qf6 {[%emt 0:00:09]} 24. Qxb4 {[%emt 0:00:04]} Bxe4 {[%emt 0:00:03]} 25. Qc5 {[%emt 0:00:43]} Ra8 {[%emt 0:00:44]} 26. Re1 {[%emt 0:00:24]} Bxg2+ {[%emt 0:00:32]} 27. Kxg2 {[%emt 0:00:04]} Qd8 {[%emt 0:00:11]} 28. Ne5 {[%emt 0:00:14]} Ra6 {[%emt 0:00:14]} 29. Rc1 {[%emt 0:00:42]} Rd6 {[%emt 0:00:45]} 30. Qxc7 {[%emt 0:03:02]} Rxd4 {[%emt 0:00:05]} 31. Qxd8 {[%emt 0:00:28]} Rdxd8 {[%emt 0:00:02]} 32. Rcd1 {[%emt 0:00:19]} 1/2-1/2

[Event "European Online Club-ch-C 2021"]
[Site "Online"]
[Date "2021.03.27"]
[Round "8.7"]
[White "Shimanov, Aleksandr"]
[Black "Van Meegen, Ruud"]
[Result "1-0"]
[ECO "B10"]
[WhiteElo "2597"]
[BlackElo "2295"]
[Annotator "ChessBase"]
[PlyCount "99"]
[EventDate "2021.03.27"]
[EventType "team-tourn"]
[EventCountry "NET"]
[SourceTitle "playchess.com"]
[Source "ChessBase"]
[SourceQuality "1"]
[TimeControl "900+5"]

1. e4 {[%emt 0:00:00]} c6 {[%emt 0:00:02]} 2. Nf3 {[%emt 0:00:13]} d5 {[%emt 0:00:03]} 3. d3 {[%emt 0:00:02]} dxe4 {[%emt 0:00:07]} 4. dxe4 {[%emt 0:00:01]} Qxd1+ {[%emt 0:00:02]} 5. Kxd1 {[%emt 0:00:00]} Nd7 {[%emt 0:00:04]} 6. Nfd2 {[%emt 0:00:21]} e5 {[%emt 0:00:16]} 7. a4 {[%emt 0:00:14]} Ngf6 {[%emt 0:01:08]} 8. f3 {[%emt 0:00:06]} Be7 {[%emt 0:00:11]} 9. Nc4 {[%emt 0:00:09]} O-O {[%emt 0:00:14]} 10. Be3 {[%emt 0:00:05]} Rd8 {[%emt 0:01:25]} 11. Nbd2 {[%emt 0:00:04]} Ne8 {[%emt 0:00:04]} 12. c3 {[%emt 0:00:21]} f6 {[%emt 0:00:03]} 13. Kc2 {[%emt 0:00:08]} Nc5 {[%emt 0:00:16]} 14. b4 {[%emt 0:00:09]} Ne6 {[%emt 0:00:08]} 15. a5 {[%emt 0:00:39]} N8c7 {[%emt 0:02:11]} 16. Nb3 {[%emt 0:00:29]} Bd7 {[%emt 0:00:54]} 17. Nb2 {[%emt 0:00:43]} Be8 {[%emt 0:00:14]} 18. Bc4 {[%emt 0:00:11]} Bf7 {[%emt 0:00:05]} 19. Rhd1 {[%emt 0:00:02]} Kf8 {[%emt 0:01:47]} 20. Rxd8+ {[%emt 0:00:10]} Nxd8 {[%emt 0:00:06]} 21. Rd1 {[%emt 0:00:10]} Ke8 {[%emt 0:00:28]} 22. Bf1 {[%emt 0:01:35]} Nde6 {[%emt 0:01:13]} 23. Na4 {[%emt 0:00:44]} h5 {[%emt 0:02:25]} 24. g3 {[%emt 0:00:19]} Nb5 {[%emt 0:00:46]} 25. Kb2 {[%emt 0:00:13]} Nbc7 {[%emt 0:01:07]} 26. f4 {[%emt 0:00:29]} Nb5 {[%emt 0:00:30]} 27. f5 {[%emt 0:00:40]} Nec7 {[%emt 0:00:02]} 28. c4 {[%emt 0:02:22]} Nd6 {[%emt 0:00:05]} 29. Nd2 {[%emt 0:00:04]} Na6 {[%emt 0:01:07]} 30. Kc3 {[%emt 0:00:29]} Nxb4 {[%emt 0:00:19]} 31. Kxb4 {[%emt 0:00:01]} Nxc4+ {[%emt 0:00:02]} 32. Bc5 {[%emt 0:00:02]} Bxc5+ {[%emt 0:00:06]} 33. Nxc5 {[%emt 0:00:07]} Ne3 {[%emt 0:00:03]} 34. Rc1 {[%emt 0:00:07]} Rd8 {[%emt 0:00:02]} 35. Nf3 {[%emt 0:00:37]} b6 {[%emt 0:00:01]} 36. axb6 {[%emt 0:00:02]} axb6 {[%emt 0:00:02]} 37. Na4 {[%emt 0:00:02]} b5 {[%emt 0:00:14]} 38. Nc5 {[%emt 0:00:05]} Nxf1 {[%emt 0:00:08]} 39. Rxf1 {[%emt 0:00:01]} Bc4 {[%emt 0:00:01]} 40. Rf2 {[%emt 0:00:17]} Ke7 {[%emt 0:00:03]} 41. Rd2 {[%emt 0:00:05]} Rxd2 {[%emt 0:00:05]} 42. Nxd2 {[%emt 0:00:01]} Bf7 {[%emt 0:00:03]} 43. Nb7 {[%emt 0:00:22]} Kd7 {[%emt 0:00:03]} 44. Kc5 {[%emt 0:00:02]} Kc7 {[%emt 0:00:08]} 45. Na5 {[%emt 0:00:01]} Be8 {[%emt 0:00:03]} 46. Nf1 {[%emt 0:00:02]} g6 {[%emt 0:00:05]} 47. Ne3 {[%emt 0:00:09]} g5 {[%emt 0:00:07]} 48. h4 {[%emt 0:00:05]} g4 {[%emt 0:00:05]} 49. Nc2 {[%emt 0:00:02]} Bd7 {[%emt 0:00:03]} 50. Nb4 {[%emt 0:00:02]} 1-0